bitfinex/quotes_BTCUSD_20240821
["timestamp","ask_amount","ask_price","bid_price","bid_amount"]
[1724229074976,0.000822,59501.0,59500.0,0.99670298]
[1724229076256,0.00061978,59501.0,59500.0,0.99670298]
[1724229079401,0.00061978,59501.0,59500.0,0.005]
[1724229079606,0.24351978,59501.0,59500.0,0.005]
[1724229079817,0.4276798,59501.0,59500.0,0.005]
[1724229080279,0.42451978,59501.0,59500.0,0.003]
[1724229080697,0.42451978,59501.0,59500.0,0.005]
[1724229081131,0.42451978,59501.0,59494.0,0.4009042]
[1724229081316,0.24351978,59501.0,59500.0,0.005]
[1724229083429,0.24351978,59501.0,59500.0,0.003]
[1724229084412,0.00061978,59501.0,59500.0,0.003]
[1724229084656,0.00061978,59501.0,59500.0,0.005]
[1724229086428,0.00061978,59501.0,59500.0,0.97410298]
[1724229087071,0.00061978,59501.0,59500.0,0.16900298]
[1724229087274,0.00061978,59501.0,59500.0,0.16400298]
[1724229087523,0.00061978,59501.0,59500.0,0.16600298]
[1724229087736,0.00061978,59501.0,59500.0,0.16900298]
[1724229087935,0.00061978,59501.0,59500.0,0.16700298]
[1724229088354,0.00061978,59501.0,59500.0,0.16900298]
[1724229088567,0.00061978,59501.0,59500.0,0.16600298]
[1724229088769,0.00061978,59501.0,59500.0,0.16900298]
[1724229088981,0.00061978,59501.0,59500.0,0.98520298]
[1724229089617,0.00061978,59501.0,59500.0,0.98020298]
[1724229089824,0.00061978,59501.0,59500.0,0.98220298]
[1724229090448,0.00061978,59501.0,59500.0,0.98020298]
[1724229090665,0.00061978,59501.0,59500.0,0.98220298]
[1724229091077,0.00061978,59501.0,59500.0,0.98320298]
[1724229091335,0.00061978,59501.0,59500.0,0.98020298]
[1724229091539,0.00061978,59501.0,59500.0,0.98220298]
[1724229091743,0.00061978,59501.0,59500.0,0.98520298]
[1724229092571,0.00061978,59501.0,59500.0,1.01520298]
[1724229092751,0.00061978,59501.0,59500.0,1.01610718]
[1724229092995,0.00061978,59501.0,59500.0,1.11110718]
[1724229093418,0.00061978,59501.0,59500.0,1.11310718]
[1724229093627,0.00061978,59501.0,59500.0,1.13910718]
[1724229093835,0.00061978,59501.0,59500.0,1.13710718]
[1724229094041,0.0263445,59513.0,59512.0,0.4]
[1724229094251,0.0263445,59513.0,59512.0,1.8112501]
[1724229094463,0.000822,59518.0,59512.0,1.4065501]
[1724229094673,0.000822,59518.0,59514.0,0.2218]
[1724229094878,0.000822,59518.0,59515.0,0.16400298]
[1724229095986,0.000822,59518.0,59516.0,0.1836]
[1724229096196,0.000822,59518.0,59517.0,0.39160298]
[1724229096859,0.000822,59518.0,59517.0,0.62160298]
[1724229097075,0.000822,59518.0,59517.0,0.80870298]
[1724229097901,0.000822,59518.0,59517.0,0.81070298]
[1724229098817,0.000822,59518.0,59517.0,0.81370298]
[1724229099456,0.000822,59518.0,59517.0,0.81170298]
[1724229099568,0.000822,59518.0,59517.0,0.80870298]
[1724229099774,0.000822,59518.0,59517.0,0.83170298]
[1724229100018,0.000822,59518.0,59517.0,0.83470298]
[1724229100277,0.000822,59518.0,59517.0,0.83570298]
[1724229100444,0.000822,59518.0,59517.0,1.25570298]
[1724229100648,0.000822,59518.0,59517.0,0.98690089]
[1724229100993,0.000822,59518.0,59517.0,0.69900298]
[1724229101205,0.000822,59518.0,59517.0,0.69700298]
[1724229101420,0.000822,59518.0,59517.0,0.69400298]
[1724229101645,0.000822,59518.0,59517.0,0.69600298]
[1724229102092,0.000822,59518.0,59517.0,0.69900298]
[1724229102537,0.000822,59518.0,59517.0,0.69600298]
[1724229102733,0.225522,59518.0,59517.0,0.69600298]
[1724229103020,0.225522,59518.0,59517.0,0.69400298]
[1724229103216,0.225522,59518.0,59517.0,0.69600298]
[1724229103643,0.000822,59518.0,59517.0,0.69400298]
[1724229104095,0.000822,59518.0,59517.0,0.69600298]
[1724229104306,0.000822,59518.0,59517.0,0.69900298]
[1724229104510,0.000822,59518.0,59517.0,0.69700298]
[1724229104711,0.000822,59518.0,59517.0,0.69900298]
[1724229105736,0.000822,59518.0,59517.0,2.24455462]
[1724229106184,0.000822,59518.0,59517.0,2.24755462]
[1724229109926,0.000822,59518.0,59517.0,2.14755462]
[1724229111094,0.000822,59518.0,59517.0,0.59900298]
[1724229111311,0.000822,59518.0,59517.0,0.56900298]
[1724229114592,0.000822,59518.0,59517.0,0.56700298]
[1724229115433,0.000822,59518.0,59517.0,0.59700298]
[1724229115639,0.000822,59518.0,59517.0,0.89850298]
[1724229115859,0.000822,59518.0,59517.0,0.90050298]
[1724229116064,0.000822,59518.0,59517.0,0.89750298]
[1724229116489,0.000822,59518.0,59517.0,0.99950298]
[1724229116687,0.000822,59518.0,59517.0,1.02050298]
[1724229117145,0.000822,59518.0,59517.0,1.02350298]
[1724229117353,0.000822,59518.0,59517.0,1.00050298]
[1724229117561,0.000822,59518.0,59517.0,0.56900298]
[1724229118424,0.000822,59518.0,59517.0,0.59900298]
[1724229118834,0.000822,59518.0,59517.0,0.59700298]
[1724229119366,0.000822,59518.0,59517.0,0.59600298]
[1724229119785,0.000822,59518.0,59517.0,0.59400298]
[1724229119983,0.000822,59518.0,59517.0,0.59900298]
[1724229120386,0.000822,59518.0,59517.0,0.59600298]
[1724229120601,0.000822,59518.0,59517.0,0.56700298]
[1724229120602,0.300522,59518.0,59517.0,0.56700298]
[1724229120807,0.300522,59518.0,59517.0,0.56900298]
[1724229121014,0.170122,59518.0,59517.0,0.56900298]
[1724229121912,0.000822,59518.0,59517.0,0.56900298]
[1724229122486,0.000822,59518.0,59517.0,0.56600298]
[1724229122683,0.000822,59518.0,59517.0,0.56700298]
[1724229123040,0.000822,59518.0,59517.0,0.56600298]
[1724229123495,0.000822,59518.0,59517.0,0.56700298]
[1724229123920,0.000822,59518.0,59517.0,0.56900298]
[1724229124341,0.000822,59518.0,59517.0,0.56400298]
[1724229124739,0.000822,59518.0,59517.0,0.56600298]
[1724229125590,0.000822,59518.0,59517.0,0.56900298]
[1724229126063,0.000822,59518.0,59517.0,0.56600298]
[1724229126266,0.000822,59518.0,59517.0,0.56700298]
[1724229126476,0.000822,59518.0,59517.0,0.59700298]
[1724229126682,0.000822,59518.0,59517.0,0.59900298]
[1724229127329,0.000822,59518.0,59517.0,0.59700298]
[1724229127541,0.000822,59518.0,59517.0,0.59400298]
[1724229127747,0.000822,59518.0,59517.0,0.59600298]
[1724229129008,0.000822,59518.0,59517.0,0.59900298]
[1724229132062,0.175322,59518.0,59517.0,0.59900298]
[1724229132270,0.305722,59518.0,59517.0,0.56900298]
[1724229132691,0.33206184,59518.0,59517.0,0.56900298]
[1724229132858,0.33206184,59518.0,59517.0,0.005]
[1724229133058,0.3420523,59518.0,59517.0,0.003]
[1724229133262,0.3420523,59518.0,59511.0,0.3362]
[1724229133263,0.1763,59517.0,59511.0,0.3362]
[1724229133508,0.1763,59517.0,59512.0,0.16400298]
[1724229133669,0.1763,59517.0,59513.0,0.4]
[1724229133872,0.1763,59517.0,59514.0,0.16400298]
[1724229134475,0.1763,59517.0,59514.0,0.21428685]
[1724229134673,0.000822,59518.0,59516.0,0.2]
[1724229134914,0.000822,59518.0,59517.0,0.16400298]
[1724229135111,0.000822,59518.0,59517.0,0.33420298]
[1724229135317,0.000822,59518.0,59517.0,0.70672467]
[1724229136152,0.000822,59518.0,59517.0,0.70972467]
[1724229136357,0.000822,59518.0,59517.0,0.70672467]
[1724229137094,0.000822,59518.0,59517.0,0.70972467]
[1724229137350,0.000822,59518.0,59517.0,0.71172467]
[1724229137552,0.000822,59525.0,59524.0,0.63]
[1724229137761,0.000822,59525.0,59524.0,2.13493018]
[1724229138026,0.000822,59525.0,59524.0,2.26843018]
[1724229138241,0.000822,59525.0,59524.0,2.30397179]
[1724229138615,0.000822,59525.0,59524.0,2.30392277]
[1724229139433,0.000822,59525.0,59524.0,3.33963416]
[1724229139631,0.000822,59525.0,59524.0,3.2885684]
[1724229140092,0.000822,59525.0,59524.0,3.2905684]
[1724229140299,0.000822,59525.0,59524.0,3.2915684]
[1724229140723,0.000822,59525.0,59524.0,3.2895684]
[1724229141058,0.000822,59525.0,59524.0,3.2915684]
[1724229141475,0.000822,59525.0,59524.0,3.51462644]
[1724229142297,0.000822,59525.0,59524.0,3.2925684]
[1724229142501,0.000822,59525.0,59524.0,3.2895684]
[1724229142704,0.000822,59525.0,59524.0,3.2915684]
[1724229142910,0.000822,59525.0,59524.0,2.45202128]
[1724229143215,0.000822,59525.0,59524.0,2.441874]
[1724229143393,0.000822,59525.0,59524.0,2.717684]
[1724229143594,0.000822,59525.0,59524.0,2.35018699]
[1724229143789,0.000822,59525.0,59524.0,2.19631757]
[1724229144000,0.000822,59525.0,59524.0,2.19431757]
[1724229144202,0.000822,59525.0,59524.0,2.35015399]
[1724229144410,0.000822,59525.0,59524.0,2.76965399]
[1724229144610,0.000822,59525.0,59524.0,3.89770563]
[1724229144837,0.000822,59525.0,59524.0,4.26823564]
[1724229145056,0.000822,59525.0,59524.0,3.84873564]
[1724229145270,0.00376537,59527.0,59526.0,0.3123]
[1724229145467,0.00376537,59527.0,59526.0,1.96839701]
[1724229145677,0.00376537,59527.0,59526.0,4.15178266]
[1724229145891,0.00376537,59527.0,59526.0,5.50314909]
[1724229146092,0.00376537,59527.0,59526.0,5.5166194]
[1724229146312,0.00376537,59527.0,59526.0,5.29381009]
[1724229146500,0.00376537,59527.0,59526.0,4.46381009]
[1724229146697,0.00376537,59527.0,59526.0,4.6866194]
[1724229146901,0.00376537,59527.0,59526.0,4.46881009]
[1724229147322,0.00376537,59527.0,59526.0,4.46381009]
[1724229147509,0.00376537,59527.0,59526.0,3.43961012]
[1724229147776,0.00376537,59527.0,59526.0,2.63412737]
[1724229147976,0.00376537,59527.0,59526.0,2.37286737]
[1724229148207,0.00376537,59527.0,59526.0,1.92445469]
[1724229149294,0.00376537,59527.0,59526.0,1.92745469]
[1724229149492,0.00376537,59527.0,59526.0,2.08305469]
[1724229149845,0.00376537,59527.0,59526.0,2.08805469]
[1724229150088,0.00376537,59527.0,59526.0,2.68563469]
[1724229150209,0.00376537,59527.0,59526.0,2.64666669]
[1724229150407,0.00376537,59527.0,59526.0,2.61726469]
[1724229150610,0.00823,59541.0,59538.0,0.003]
[1724229150815,0.00823,59541.0,59538.0,6.69181921]
[1724229151017,0.00823,59541.0,59538.0,9.63213266]
[1724229151424,0.00823,59541.0,59538.0,9.63413266]
[1724229151637,0.00823,59541.0,59538.0,8.14597677]
[1724229151836,0.00823,59541.0,59538.0,8.05440977]
[1724229152030,0.00823,59541.0,59538.0,7.16062507]
[1724229152244,0.00823,59541.0,59538.0,8.05409491]
[1724229152770,0.1741,59554.0,59553.0,0.6]
[1724229153005,0.1741,59554.0,59553.0,1.7065501]
[1724229154457,0.1741,59554.0,59553.0,1.7085501]
[1724229155664,0.1741,59554.0,59553.0,1.7115501]
[1724229155916,0.1741,59554.0,59553.0,1.7085501]
[1724229156128,0.1741,59554.0,59553.0,1.7095501]
[1724229156609,0.1741,59554.0,59553.0,1.7115501]
[1724229157405,0.1741,59554.0,59553.0,1.7085501]
[1724229157835,0.1741,59554.0,59553.0,1.7065501]
[1724229158183,0.1741,59554.0,59553.0,0.86400298]
[1724229159062,0.1741,59554.0,59553.0,0.86700298]
[1724229159279,0.1741,59554.0,59553.0,0.86600298]
[1724229159735,0.1741,59554.0,59553.0,0.86700298]
[1724229159946,0.1741,59554.0,59553.0,0.86900298]
[1724229161996,0.3064,59554.0,59553.0,0.56600298]
[1724229162217,0.2939,59550.0,59546.0,0.70855164]
[1724229162458,0.2939,59550.0,59544.0,0.4195]
[1724229162459,0.1592,59549.0,59547.0,0.16400298]
[1724229164130,0.1592,59549.0,59547.0,0.16600298]
[1724229164974,0.02632506,59556.0,59552.0,0.63]
[1724229165170,0.1324,59557.0,59553.0,0.16400298]
[1724229165381,0.1708,59556.0,59553.0,0.16400298]
[1724229166621,0.1708,59556.0,59553.0,0.16600298]
[1724229167050,0.1708,59556.0,59553.0,0.16700298]
[1724229167452,0.1708,59556.0,59553.0,0.16900298]
[1724229168718,0.1708,59556.0,59553.0,0.16700298]
[1724229168954,0.1708,59556.0,59553.0,0.16400298]
[1724229169171,0.1708,59556.0,59553.0,0.16900298]
[1724229169376,0.1708,59556.0,59553.0,0.16600298]
[1724229169581,0.1708,59556.0,59553.0,0.16400298]
[1724229169785,0.1708,59556.0,59553.0,0.16900298]
[1724229169988,0.1708,59556.0,59553.0,0.16600298]
[1724229170398,0.1708,59556.0,59554.0,0.70855164]
[1724229170600,0.1708,59556.0,59555.0,0.16400298]
[1724229170817,0.17396002,59556.0,59555.0,0.16400298]
[1724229171444,0.1708,59556.0,59555.0,0.16400298]
[1724229172696,0.1708,59556.0,59555.0,0.16700298]
[1724229173317,0.1708,59556.0,59555.0,0.16900298]
[1724229175836,0.0002,59559.0,59558.0,0.43]
[1724229176042,0.0002,59559.0,59558.0,0.59400298]
[1724229176249,0.0002,59559.0,59558.0,0.56400298]
[1724229176250,0.1638,59559.0,59558.0,0.56400298]
[1724229176665,0.2937,59558.0,59555.0,0.84754712]
[1724229176892,0.2937,59557.0,59555.0,0.003]
[1724229177094,0.2937,59557.0,59548.0,0.84254712]
[1724229177095,0.1317,59555.0,59550.0,1.54755164]
[1724229177296,0.29616002,59556.0,59550.0,1.54755164]
[1724229177297,0.1317,59553.0,59551.0,0.16400298]
[1724229177507,0.164,59552.0,59551.0,0.16400298]
[1724229179165,0.164,59552.0,59551.0,0.16700298]
[1724229179569,0.164,59552.0,59551.0,0.16900298]
[1724229180787,0.2958,59552.0,59551.0,0.16900298]
[1724229181029,0.2958,59552.0,59551.0,0.005]
[1724229181470,0.29896002,59552.0,59551.0,0.005]
[1724229182092,0.29896002,59552.0,59551.0,0.002]
[1724229182299,0.29896002,59552.0,59551.0,0.003]
[1724229182505,0.29896002,59552.0,59540.0,0.4]
[1724229182714,0.295,59548.0,59542.0,0.16400298]
[1724229182939,0.17216002,59547.0,59542.0,0.16400298]
[1724229183147,0.126,59546.0,59542.0,0.16400298]
[1724229183360,0.17216002,59545.0,59542.0,0.16400298]
[1724229183569,0.17216002,59545.0,59538.0,0.0009042]
[1724229183570,0.293,59543.0,59538.0,0.0009042]
[1724229183775,0.29326002,59542.0,59538.0,0.0009042]
[1724229184636,0.31959244,59542.0,59538.0,0.0009042]
[1724229185867,0.31959244,59542.0,59541.0,0.0039042]
[1724229186076,0.31959244,59542.0,59541.0,0.0059042]
[1724229186492,0.31959244,59542.0,59541.0,0.0039042]
[1724229186745,0.31959244,59542.0,59541.0,0.0009042]
[1724229186947,0.31959244,59542.0,59541.0,0.0049042]
[1724229187157,0.32640274,59542.0,59541.0,0.0049042]
[1724229187360,0.32956276,59542.0,59541.0,0.0049042]
[1724229188405,0.31643242,59542.0,59541.0,0.0019042]
[1724229188825,0.31959244,59542.0,59541.0,0.0049042]
[1724229189040,0.02633242,59542.0,59541.0,0.16790718]
[1724229189244,0.1602,59546.0,59541.0,0.16990718]
[1724229189464,0.1602,59546.0,59542.0,0.16400298]
[1724229189671,0.1602,59546.0,59545.0,0.4]
[1724229189916,0.00336002,59559.0,59541.0,0.0039042]
[1724229189917,0.2974,59542.0,59541.0,0.0039042]
[1724229190121,0.2974,59542.0,59541.0,0.0009042]
[1724229190348,0.30056002,59542.0,59541.0,0.0029042]
[1724229190763,0.30156002,59542.0,59541.0,0.0029042]
[1724229191379,0.30156002,59542.0,59541.0,0.0059042]
[1724229191603,0.31195782,59542.0,59541.0,0.0059042]
[1724229191848,0.31195782,59542.0,59541.0,0.0029042]
[1724229192073,0.31195782,59542.0,59541.0,0.0039042]
[1724229192302,0.31195782,59542.0,59541.0,0.0049042]
[1724229192742,0.31195782,59542.0,59541.0,0.0039042]
[1724229193199,0.31195782,59542.0,59541.0,0.0049042]
[1724229193403,0.31095782,59542.0,59541.0,0.0049042]
[1724229193815,0.31195782,59542.0,59541.0,0.0049042]
[1724229195805,0.18225782,59542.0,59541.0,0.0049042]
[1724229196023,0.00316002,59546.0,59541.0,0.16890718]
[1724229196233,0.00316002,59545.0,59541.0,0.0049042]
[1724229196440,0.1628,59544.0,59541.0,0.0049042]
[1724229197256,0.1628,59544.0,59541.0,0.16890718]
[1724229197462,0.1628,59544.0,59541.0,0.16790718]
[1724229197873,0.1628,59544.0,59541.0,0.16490718]
[1724229198759,0.1628,59544.0,59541.0,0.16790718]
[1724229198962,0.16045326,59547.0,59542.0,0.16400298]
[1724229198963,0.02715326,59547.0,59542.0,0.16400298]
[1724229200043,0.02715326,59547.0,59541.0,0.0059042]
[1724229200248,0.02715326,59547.0,59541.0,0.16790718]
[1724229200453,0.03031328,59547.0,59542.0,0.002]
[1724229201759,0.03031328,59547.0,59542.0,0.005]
[1724229201964,0.03031328,59547.0,59541.0,0.16490718]
[1724229202169,0.03031328,59547.0,59541.0,0.16690718]
[1724229202374,0.03031328,59547.0,59542.0,0.003]
[1724229203245,0.03031328,59547.0,59541.0,0.16490718]
[1724229203448,0.03031328,59547.0,59542.0,0.002]
[1724229204471,0.02715326,59547.0,59542.0,0.002]
[1724229204910,0.02715326,59547.0,59542.0,0.16400298]
[1724229205113,0.02715326,59547.0,59542.0,0.16700298]
[1724229205321,0.02715326,59547.0,59543.0,0.16400298]
[1724229205570,0.02715326,59547.0,59546.0,0.03]
[1724229205787,0.000822,59547.0,59546.0,0.19400298]
[1724229206802,0.000822,59547.0,59546.0,0.19700298]
[1724229207008,0.000822,59547.0,59546.0,0.19900298]
[1724229208048,0.000822,59547.0,59546.0,0.19600298]
[1724229208251,0.000822,59547.0,59546.0,0.19400298]
[1724229208464,0.000822,59547.0,59546.0,0.19600298]
[1724229208869,0.000822,59547.0,59546.0,0.19900298]
[1724229209515,0.000822,59547.0,59546.0,0.005]
[1724229209516,0.165622,59547.0,59546.0,0.005]
[1724229209720,0.295922,59547.0,59546.0,0.005]
[1724229211151,0.165622,59547.0,59546.0,0.002]
[1724229211361,0.000822,59547.0,59546.0,0.16600298]
[1724229211561,0.000822,59547.0,59546.0,0.16900298]
[1724229211769,0.000822,59547.0,59546.0,0.16700298]
[1724229211970,0.000822,59547.0,59546.0,0.16400298]
[1724229211971,0.00061986,59547.0,59546.0,0.16400298]
[1724229212180,0.00061986,59547.0,59546.0,0.16900298]
[1724229212387,0.00061986,59547.0,59546.0,0.16600298]
[1724229212587,0.00061986,59547.0,59546.0,0.16400298]
[1724229212787,0.00061986,59547.0,59546.0,0.16700298]
[1724229212990,0.00061986,59547.0,59546.0,0.005]
[1724229213192,0.00377988,59547.0,59546.0,0.002]
[1724229213399,0.00377988,59547.0,59541.0,0.0009042]
[1724229213607,0.00377988,59547.0,59546.0,0.002]
[1724229213608,0.00061986,59547.0,59546.0,0.002]
[1724229214643,0.00061986,59547.0,59546.0,0.005]
[1724229214847,0.00061986,59547.0,59546.0,0.002]
[1724229215047,0.00061986,59547.0,59542.0,0.16400298]
[1724229215048,0.1533,59546.0,59542.0,0.16400298]
[1724229215252,0.00316002,59545.0,59542.0,0.16400298]
[1724229216125,0.00316002,59545.0,59542.0,0.16700298]
[1724229216334,0.1533,59546.0,59542.0,0.16700298]
[1724229216538,0.15646002,59546.0,59542.0,0.003]
[1724229216736,0.18278678,59546.0,59542.0,0.003]
[1724229217567,0.02632676,59546.0,59543.0,0.1303]
[1724229217767,0.00061986,59547.0,59543.0,0.1303]
[1724229218211,0.00061986,59547.0,59545.0,0.4]
[1724229218448,0.00061986,59547.0,59546.0,0.16400298]
[1724229218666,0.00061986,59547.0,59546.0,0.31400298]
[1724229219352,0.00061986,59547.0,59546.0,0.34400298]
[1724229219796,0.00061986,59547.0,59546.0,0.34600298]
[1724229221343,0.00061986,59547.0,59546.0,0.34700298]
[1724229221762,0.00061986,59547.0,59546.0,0.34400298]
[1724229221912,0.00061986,59547.0,59546.0,0.34900298]
[1724229222371,0.00061986,59547.0,59546.0,0.34700298]
[1724229222773,0.00061986,59547.0,59546.0,0.34900298]
[1724229223371,0.00061986,59547.0,59546.0,0.39920572]
[1724229223580,0.00061986,59547.0,59546.0,0.19900298]
[1724229224389,0.00061986,59547.0,59546.0,0.19600298]
[1724229224848,0.00061986,59547.0,59546.0,0.24720572]
[1724229225054,0.00061986,59547.0,59546.0,0.19900298]
[1724229225202,0.00061986,59547.0,59546.0,0.19600298]
[1724229225636,0.00061986,59547.0,59546.0,0.19400298]
[1724229226008,0.00061986,59547.0,59546.0,0.19900298]
[1724229226425,0.00061986,59547.0,59546.0,0.19700298]
[1724229226628,0.00061986,59547.0,59546.0,0.19400298]
[1724229226831,0.00061986,59547.0,59546.0,0.19600298]
[1724229228123,0.00061986,59547.0,59546.0,0.19400298]
[1724229228302,0.00061986,59547.0,59546.0,0.19700298]
[1724229228544,0.00061986,59547.0,59546.0,0.19900298]
[1724229228747,0.00061986,59547.0,59546.0,0.19600298]
[1724229228952,0.00061986,59547.0,59546.0,0.19900298]
[1724229232051,0.15601986,59547.0,59546.0,0.16900298]
[1724229232312,0.15601986,59547.0,59546.0,0.005]
[1724229233142,0.15601986,59547.0,59546.0,0.16700298]
[1724229233765,0.00061986,59547.0,59546.0,0.32260298]
[1724229233975,0.00061986,59547.0,59546.0,0.42260298]
[1724229234179,0.00061986,59547.0,59546.0,0.47281719]
[1724229234445,0.00061986,59547.0,59546.0,0.41960298]
[1724229234709,0.00061986,59547.0,59546.0,0.42460298]
[1724229234966,0.00061986,59547.0,59546.0,0.47483366]
[1724229235172,0.00061986,59547.0,59546.0,0.47283366]
[1724229235374,0.00061986,59547.0,59546.0,0.47483366]
[1724229235828,0.00061986,59547.0,59546.0,0.42460298]
[1724229236271,0.00061986,59547.0,59546.0,0.89738457]
[1724229236682,0.00061986,59547.0,59546.0,0.79692321]
[1724229236894,0.00061986,59547.0,59546.0,0.89738457]
[1724229237350,0.00061986,59547.0,59546.0,0.79692321]
[1724229237568,0.00061986,59547.0,59546.0,0.79592321]
[1724229237569,1e-08,59547.0,59546.0,0.79592321]
[1724229237778,1e-08,59547.0,59546.0,0.79492321]
[1724229238000,1e-08,59547.0,59546.0,0.79692321]
[1724229238454,1e-08,59547.0,59546.0,0.79492321]
[1724229238671,1e-08,59547.0,59546.0,0.79692321]
[1724229238878,1e-08,59547.0,59546.0,0.80092321]
[1724229239089,1e-08,59547.0,59546.0,0.94882741]
[1724229239966,1e-08,59547.0,59546.0,0.95082741]
[1724229240408,1e-08,59547.0,59546.0,0.94782741]
[1724229241313,1e-08,59547.0,59546.0,1.46910165]
[1724229241727,1e-08,59547.0,59546.0,0.80082741]
[1724229243196,1e-08,59547.0,59546.0,0.80081674]
[1724229243665,1e-08,59547.0,59546.0,2.07686838]
[1724229243883,1e-08,59547.0,59546.0,2.96060177]
[1724229244099,1e-08,59547.0,59546.0,2.96160177]
[1724229244319,1e-08,59547.0,59546.0,3.29740177]
[1724229245389,1e-08,59547.0,59546.0,3.29940177]
[1724229245594,0.1,59555.0,59554.0,0.9067]
[1724229245814,0.1,59555.0,59554.0,2.38655966]
[1724229246028,0.1,59555.0,59554.0,3.80279305]
[1724229246248,0.1,59555.0,59554.0,4.38479305]
[1724229246457,0.1,59555.0,59554.0,6.71085808]
[1724229246666,0.1,59555.0,59554.0,5.61629305]
[1724229246873,0.1,59555.0,59554.0,5.62029305]
[1724229247095,0.1,59555.0,59554.0,4.34185808]
[1724229247310,0.1,59555.0,59554.0,4.11829305]
[1724229247743,0.1,59555.0,59554.0,4.12007064]
[1724229248177,0.1,59555.0,59554.0,4.12507064]
[1724229248390,0.1,59555.0,59554.0,4.12207064]
[1724229248620,0.1,59555.0,59554.0,4.96507064]
[1724229248835,0.1,59555.0,59554.0,4.97507064]
[1724229249037,0.1,59555.0,59554.0,5.19757996]
[1724229249244,0.1,59555.0,59554.0,5.19546132]
[1724229250321,0.1,59555.0,59554.0,5.19540618]
[1724229250529,0.1,59555.0,59554.0,5.19740618]
[1724229250961,0.1,59555.0,59554.0,5.45182306]
[1724229251171,0.1655,59576.0,59558.0,0.273]
[1724229251391,0.1655,59576.0,59558.0,3.40925232]
[1724229251594,0.1655,59576.0,59558.0,3.74505232]
[1724229251799,0.1655,59576.0,59558.0,3.89557078]
[1724229252223,0.1655,59576.0,59558.0,4.73715848]
[1724229252430,0.1655,59576.0,59575.0,0.4]
[1724229252652,0.1655,59576.0,59575.0,0.66400298]
[1724229254079,0.1679,59579.0,59575.0,0.66400298]
[1724229254332,0.1679,59579.0,59576.0,0.26400298]
[1724229254927,0.1679,59579.0,59578.0,0.2]
[1724229255189,0.1679,59579.0,59578.0,0.46400298]
[1724229255401,0.3011,59579.0,59578.0,0.46400298]
[1724229255602,0.3011,59579.0,59578.0,0.26400298]
[1724229255810,0.3011,59579.0,59576.0,0.005]
[1724229255811,0.2802,59578.0,59576.0,0.002]
[1724229256016,0.1586,59577.0,59576.0,0.16600298]
[1724229257278,0.1586,59577.0,59576.0,0.16400298]
[1724229258313,0.1586,59577.0,59576.0,0.16700298]
[1724229258517,0.2807,59577.0,59576.0,0.16900298]
[1724229259143,0.2807,59577.0,59576.0,0.005]
[1724229259774,0.28386002,59577.0,59576.0,0.005]
[1724229260400,0.34519743,59577.0,59576.0,0.005]
[1724229260607,0.28386002,59577.0,59576.0,0.005]
[1724229260818,0.00316002,59577.0,59563.0,0.4]
[1724229261025,0.1646,59572.0,59564.0,0.16400298]
[1724229261237,0.1646,59570.0,59564.0,0.16400298]
[1724229261451,0.0002,59579.0,59564.0,0.16400298]
[1724229261452,0.13016002,59569.0,59564.0,0.16400298]
[1724229261664,0.1646,59567.0,59564.0,0.16400298]
[1724229261875,0.127,59566.0,59564.0,0.16400298]
[1724229262079,0.1646,59565.0,59564.0,0.16400298]
[1724229264262,0.1646,59565.0,59564.0,0.16900298]
[1724229264500,0.1516,59570.0,59564.0,1.1365501]
[1724229264748,0.1516,59570.0,59564.0,1.1395501]
[1724229265002,0.1516,59570.0,59564.0,1.1385501]
[1724229265489,0.1516,59570.0,59569.0,0.4]
[1724229265733,0.1516,59570.0,59569.0,0.56400298]
[1724229266257,0.155,59573.0,59571.0,0.03]
[1724229266495,0.155,59573.0,59572.0,0.16400298]
[1724229268573,0.155,59573.0,59572.0,0.16600298]
[1724229268832,0.1287,59578.0,59577.0,0.4]
[1724229269065,0.1287,59578.0,59577.0,0.56400298]
[1724229269320,0.2817,59578.0,59577.0,0.56400298]
[1724229271573,0.2817,59578.0,59577.0,0.56700298]
[1724229271817,0.2817,59578.0,59577.0,0.56900298]
[1724229272324,0.2817,59578.0,59577.0,0.56400298]
[1724229272568,0.2817,59578.0,59577.0,2.0085501]
[1724229272569,0.02631384,59578.0,59577.0,2.0085501]
[1724229272807,0.02631384,59578.0,59577.0,1.7395501]
[1724229273290,0.001022,59579.0,59577.0,1.7395501]
[1724229273527,0.001022,59579.0,59578.0,0.16400298]
[1724229273793,0.001022,59579.0,59578.0,0.26400298]
[1724229274294,0.153022,59579.0,59578.0,0.26400298]
[1724229274546,0.153022,59579.0,59577.0,0.402]
[1724229274547,0.128422,59579.0,59577.0,0.402]
[1724229274779,0.152,59578.0,59577.0,0.56400298]
[1724229275283,0.152,59578.0,59577.0,0.76400298]
[1724229275525,0.152,59578.0,59577.0,0.56400298]
[1724229275772,0.152,59578.0,59577.0,0.56600298]
[1724229276005,0.152,59578.0,59577.0,0.56900298]
[1724229277059,0.152,59578.0,59577.0,0.56600298]
[1724229277298,0.001022,59579.0,59578.0,0.03]
[1724229277550,0.001022,59579.0,59578.0,0.19400298]
[1724229278186,0.001022,59579.0,59578.0,0.49400298]
[1724229278611,0.001022,59579.0,59578.0,0.49700298]
[1724229278863,0.001022,59579.0,59578.0,0.49400298]
[1724229279513,0.001022,59579.0,59578.0,0.67154157]
[1724229279724,0.001022,59579.0,59578.0,0.62140298]
[1724229279927,0.001022,59579.0,59578.0,0.69661087]
[1724229280138,0.001022,59579.0,59578.0,0.69964675]
[1724229280350,0.001022,59579.0,59578.0,1.07176888]
[1724229280566,0.001022,59579.0,59578.0,1.06876888]
[1724229280783,1e-08,59579.0,59578.0,1.23515014]
[1724229281000,1e-08,59579.0,59578.0,1.15782511]
[1724229281208,0.00814977,59585.0,59584.0,0.8922]
[1724229281469,0.00814977,59585.0,59584.0,2.44608277]
[1724229281675,0.00814977,59585.0,59584.0,2.78188277]
[1724229283591,0.00814977,59585.0,59584.0,2.70864028]
[1724229284063,0.00814977,59585.0,59584.0,2.83704444]
[1724229284271,0.00814977,59585.0,59584.0,2.83402231]
[1724229284694,0.00814977,59585.0,59584.0,2.83502231]
[1724229284903,0.00814977,59585.0,59584.0,2.70660968]
[1724229285116,0.00814977,59585.0,59584.0,2.70860968]
[1724229285339,0.00814977,59585.0,59584.0,2.71160968]
[1724229285548,0.00814977,59585.0,59584.0,2.70960968]
[1724229285960,0.00814977,59585.0,59584.0,2.71160968]